Cogmind - Beta 11.1 @@@ ROGUE MODE // 2022.05.12 @ 22:41:00 Player: Decinym Result: Destroyed by H-71 Marshal with Heavy Mass Driver Performance ------------- Evolutions (7) 3500 Regions Visited (25) 5000 Robots Destroyed (279) 1395 Value Destroyed (12036) 12036 Prototype IDs (61) 1220 Alien Tech Used (0) 0 Bonus (7927) 7927 TOTAL SCORE: 31078 Bonus ------- Triggered High Security 1000 High Alert Combat Kills 3381 Follower Combat Kills 1863 Network Hubs Disabled 200 Aligned with FarCom 300 Met Data Miner 300 Met Imprinter 300 Destroyed Z-Imprinter 1000 Triggered Deep Caves Wall 500 Exposed GOLEM Chamber 500 A7 Reached Mainframe 300 Friendly Fire -1717 Cogmind --------- Core Integrity 0/1300 Matter 191/300 Energy 100/100 System Corruption 16% Temperature Cool (0) Movement Core (50) Location -3/Research Parts ------- > --- POWER (2) -------- (None) > --- PROPULSION (6) --- (None) > --- UTILITY (10) ----- (None) > --- WEAPON (3) ------- (None) > --- INVENTORY (5) ---- Zionite Biocell (203) Mobile Assembly Unit Peak State ------------ > --- POWER ------------ Assembled Flux Generator > --- PROPULSION ------- Enhanced Flexi-carbon Leg Enhanced Flexi-carbon Leg Assembled Alloy Leg Assembled Alloy Leg > --- UTILITY ---------- Assembled Nanovents Assembled Nanovents Assembled Nanovents Huge Storage Unit Assembled Biocell Array Assembled Suspension Frame Assembled Combat Suite Assembled Alloy Armor GOLEM Unit > --- WEAPON ----------- Zionite Phaser-S Assembled Focal Cannon Assembled Focal Cannon > --- INVENTORY -------- Zionite Light DM Reactor Flexi-carbon Leg Improved Heat Sink Zionite Biocell Zionite Biocell Zionite Biocell Advanced Terrain Scanner Modified TNC Tactical Coordination Suite Armor Integrity Analyzer Transmission Jammer Zionite Weapon Casing Zionite Weapon Casing Makeshift Ablative Armor System Restoration Module Mobile Assembly Unit GOLEM Unit AWS/Autocannon Scatter Rocket Array [Rating: 168] Favorites ----------- Power Assembled Flux Generator Engine Improved Deuterium Engine Power Core Nuclear Core Reactor Assembled Flux Generator Propulsion Light Treads Treads Light Treads Leg Assembled Alloy Leg Hover Unit Zionite Glidesys I Utility Huge Storage Unit Device Experimental Heat Sink Storage Huge Storage Unit Processor Advanced Targeting Computer Protection Layered Medium Armor Plating Weapon Assembled Focal Cannon Energy Gun Beamcaster Energy Cannon Assembled Focal Cannon Ballistic Gun Enhanced Autogun Ballistic Cannon AWS/Autocannon Launcher YI-UF0's Doublenader Impact Weapon Great Maul Build | -11 -10 -10 -9 -9 -9 -8 -8 -7 -7 -7 -7 -7 -6 -6 -6 -6 -6 -5 -5 -5 -5 -5 -5 -4 -3 ------- Run | Scr Mat Min Mat Min Exi Min Mat Fac Low Low Zio Dee Pro Fac Low Low Dat Pro Fac Ext Cet Arc Hub Fac Res Slots Evolved 14 | . . . 2 . . . 2 2 . . . . . 2 . . . . 2 . . . . 2 2 Power 1 | . . . . . . . . . . . . . . . . . . . 1 . . . . . . Propulsion 4 | . . . . . . . 1 . . . . . . 1 . . . . . . . . . . 2 Utility 8 | . . . 2 . . . 1 1 . . . . . 1 . . . . 1 . . . . 2 . Weapon 1 | . . . . . . . . 1 . . . . . . . . . . . . . . . . . Parts Attached 177 | . 10 10 14 1 1 5 12 8 6 1 7 32 . 4 2 1 . 4 6 8 1 . 7 13 24 Power 8 | . 1 . . . . . 1 1 . . . 1 . 1 . . . . . . . . . . 3 Engine 3 | . 1 . . . . . . 1 . . . . . 1 . . . . . . . . . . . Core 1 | . . . . . . . 1 . . . . . . . . . . . . . . . . . . Reactor 4 | . . . . . . . . . . . . 1 . . . . . . . . . . . . 3 Propulsion 39 | . 5 3 3 . . 2 3 . . . 1 7 . 1 . 1 . . 2 . . . 1 2 8 Treads 13 | . . . 2 . . 2 3 . . . 1 5 . . . . . . . . . . . . . Leg 25 | . 5 3 1 . . . . . . . . 1 . 1 . 1 . . 2 . . . 1 2 8 Wheel . | . . . . . . . . . . . . . . . . . . . . . . . . . . Hover 1 | . . . . . . . . . . . . 1 . . . . . . . . . . . . . Flight . | . . . . . . . . . . . . . . . . . . . . . . . . . . Utility 69 | . 1 . 6 1 1 1 2 6 2 . 3 12 . 2 2 . . 3 3 8 1 . 2 5 8 Device 26 | . 1 . . . . . . 1 . . 2 4 . 2 2 . . 1 3 3 . . 1 1 5 Storage 7 | . . . 4 . 1 . . 1 . . . 1 . . . . . . . . . . . . . Processor 9 | . . . 1 1 . . 1 1 . . . . . . . . . . . . . . . 2 3 Hackware . | . . . . . . . . . . . . . . . . . . . . . . . . . . Protection 27 | . . . 1 . . 1 1 3 2 . 1 7 . . . . . 2 . 5 1 . 1 2 . Artifact . | . . . . . . . . . . . . . . . . . . . . . . . . . . Weapon 61 | . 3 7 5 . . 2 6 1 4 1 3 12 . . . . . 1 1 . . . 4 6 5 Energy Gun 21 | . 2 1 1 . . 1 2 . 1 . . 9 . . . . . . . . . . 2 2 . Energy Cannon . | . . . . . . . . . . . . . . . . . . . . . . . . . . Ballistic Gun 12 | . . 1 2 . . . 3 1 2 . 2 . . . . . . . . . . . 1 . . Ballistic Cannon 2 | . . . . . . . . . . . . . . . . . . . . . . . . . 2 Launcher 19 | . 1 2 1 . . 1 . . 1 1 . 2 . . . . . 1 1 . . . 1 4 3 Special Weapon . | . . . . . . . . . . . . . . . . . . . . . . . . . . Impact Weapon 7 | . . 3 1 . . . 1 . . . 1 1 . . . . . . . . . . . . . Slashing Weapon . | . . . . . . . . . . . . . . . . . . . . . . . . . . Piercing Weapon . | . . . . . . . . . . . . . . . . . . . . . . . . . . Special Melee Weapon . | . . . . . . . . . . . . . . . . . . . . . . . . . . Unidentified Prototypes 20 | . . 1 . . . . 2 . . . 1 9 . 1 . . . . 1 . 1 . 1 1 2 Corrupted Parts 2 | . . 2 . . . . . . . . . . . . . . . . . . . . . . . System Corruption 8 | . . 8 . . . . . . . . . . . . . . . . . . . . . . . Parts Lost 40 | . 1 . . . . . 1 . . . 1 3 . . . . . . . 1 . . 1 5 27 Power 4 | . . . . . . . 1 . . . . . . . . . . . . . . . . . 3 Propulsion 13 | . 1 . . . . . . . . . . 2 . . . . . . . . . . . . 10 Utility 14 | . . . . . . . . . . . 1 1 . . . . . . . 1 . . . 3 8 Weapon 9 | . . . . . . . . . . . . . . . . . . . . . . . 1 2 6 Highest Loss Streak 10 | . 1 . . . . . 1 . . . 1 1 . . . . . . . 1 . . 1 2 10 To Critical Strikes . | . . . . . . . . . . . . . . . . . . . . . . . . . . Average Slot Usage (%) 93 | . 93 99 90 100 100 100 98 93 99 100 98 90 100 93 99 100 100 99 87 87 88 88 84 84 81 Engine 4 | . 13 14 11 11 11 11 1 5 7 7 7 5 . 5 6 6 6 6 . . . . . . . Reactor 1 | . . . . . . . . . . . . 1 7 . . . . . 4 4 5 5 5 5 3 Treads 9 | . . . 17 22 22 22 27 23 23 23 23 11 . . . . . . . . . . . . . Leg 13 | . 27 28 4 . . . . . . . . 8 23 21 26 26 26 26 22 23 23 23 23 21 24 Device 12 | . 9 14 11 11 11 11 9 7 7 7 7 14 7 11 12 13 13 12 17 16 11 11 12 17 18 Storage 10 | . 14 14 11 11 11 11 9 7 7 7 7 8 15 13 13 13 13 13 11 11 11 11 11 10 8 Processor 7 | . . . 2 11 11 11 16 15 15 15 13 7 7 6 6 6 6 6 5 2 . . . 5 10 Protection 10 | . . . 10 11 11 11 9 15 15 15 15 8 15 13 13 13 13 12 5 8 17 17 12 8 . Energy Gun 2 | . 18 9 11 11 11 11 7 . . . . 3 . . . . . . . . . . . . . Energy Cannon 9 | . . . . . . . . . . . . 10 23 20 20 20 20 15 15 16 17 17 12 13 11 Ballistic Gun 6 | . 10 1 . 11 11 11 10 16 22 19 21 6 . . . . . . . . . . . . . Impact Weapon 1 | . . 16 9 . . . . . . . 1 . . . . . . . . . . . . . . Naked Turns 61 | . . . . . . . . . . . . . . . . . . . . . . . . . 61 Heaviest Build 190 | 14 17 19 38 38 98 98 105 125 119 118 122 163 163 169 169 169 169 169 179 187 187 187 187 190 186 Greatest Support 146 | 20 26 30 40 40 40 40 60 60 60 60 60 84 84 99 99 104 104 104 116 116 116 116 116 116 146 Greatest Overweight (x) 2 | . 1 . 1 . 2 2 1 2 1 1 2 2 1 2 1 1 1 1 1 1 1 1 1 1 2 Average Overweight (x) . | . . . . . . 2 1 1 1 1 1 1 1 1 1 1 1 1 1 1 1 1 1 1 . Largest Inventory Capacity 25 | 8 8 8 25 15 25 25 25 25 25 25 25 25 25 25 25 25 25 25 25 25 25 25 25 25 25 Average Capacity 23 | 8 8 8 11 15 21 25 25 25 25 25 25 25 25 25 25 25 25 25 25 25 25 25 25 25 24 Most Carried 25 | 5 8 8 14 15 18 21 25 25 25 25 25 25 25 25 25 25 25 25 25 25 24 25 25 25 22 Average Carried 22 | 5 7 7 9 14 16 20 22 24 24 25 24 23 24 24 24 24 25 24 24 24 24 24 24 24 19 Final Capacity 25 | 8 8 8 15 15 25 25 25 25 25 25 25 25 25 25 25 25 25 25 25 25 25 25 25 25 5 Final Carried 25 | 4 8 8 14 15 18 21 25 25 25 25 24 25 25 25 25 25 25 25 25 24 24 24 25 23 5 Class Distribution -------------------- 39% | Mutant 16% | Gunner 15% | Tank 12% | Golem 5% | Scavenger-Mutant 3% | Commander-Golem Dominant Class ---------------- Mutant | -10/Materials Mutant | -10/Mines Mutant | -9/Materials Mutant | -9/Mines Mutant | -9/Exiles Scavenger-Mutant | -8/Mines Scavenger-Mutant | -8/Materials Mutant | -7/Factory Gunner | -7/Lower Caves Gunner | -7/Lower Caves Gunner | -7/Zion Tank | -7/Deep Caves Mutant | -6/Proximity Caves Tank | -6/Factory Tank | -6/Lower Caves Tank | -6/Lower Caves Tank | -6/Data Miner Mutant | -5/Proximity Caves Golem | -5/Factory Golem | -5/Extension Mutant | -5/Cetus Mutant | -5/Archives Mutant | -5/Hub_04(d) Golem | -4/Factory Scavenger-Golem | -3/Research Resources | -11 -10 -10 -9 -9 -9 -8 -8 -7 -7 -7 -7 -7 -6 -6 -6 -6 -6 -5 -5 -5 -5 -5 -5 -4 -3 ----------- Run | Scr Mat Min Mat Min Exi Min Mat Fac Low Low Zio Dee Pro Fac Low Low Dat Pro Fac Ext Cet Arc Hub Fac Res Matter Collected 3692 | 200 104 181 174 262 10 105 143 172 248 196 20 667 . 40 20 10 . 160 172 85 20 . 70 267 366 Remotely . | . . . . . . . . . . . . . . . . . . . . . . . . . . Salvage Created 13693 | . 125 450 384 293 . 432 472 207 635 216 . 1442 71 404 320 386 . 277 506 1167 51 . 1047 2187 2621 Parts 574 | . 12 17 18 14 . 22 21 8 32 10 . 11 3 13 11 18 . 11 33 48 2 . 62 104 104 Haulers Intercepted 9 | . . . 2 . . . 2 . . . . . . . . . . . 1 . . . 1 2 1 Recyclers Shooed 5 | . . . 1 . . 2 . . . . . . . . . . . . . . . . 1 . 1 Parts Field Recycled . | . . . . . . . . . . . . . . . . . . . . . . . . . . Retrieved Matter . | . . . . . . . . . . . . . . . . . . . . . . . . . . Parts Self-Destructed 107 | . . . . . . . . . 32 11 . . 4 . 11 40 . 9 . . . . . . . Prevented 6 | . . . . . . . . . 5 . . . . . . 1 . . . . . . . . . Kills | -11 -10 -10 -9 -9 -9 -8 -8 -7 -7 -7 -7 -7 -6 -6 -6 -6 -6 -5 -5 -5 -5 -5 -5 -4 -3 ------- Run | Scr Mat Min Mat Min Exi Min Mat Fac Low Low Zio Dee Pro Fac Low Low Dat Pro Fac Ext Cet Arc Hub Fac Res Combat Hostiles Destroyed 240 | . 5 6 6 6 . 6 3 2 13 8 . 44 3 4 8 9 . 9 5 13 1 . 9 40 40 Melee 6 | . . 2 1 . . . . . . . . 2 . . . . . 1 . . . . . . . Guns 29 | . 2 . 1 6 . 5 3 2 9 1 . . . . . . . . . . . . . . . Cannons 98 | . . . . . . . . . . . . 1 3 4 8 9 . 1 5 13 1 . 9 18 26 AOE 94 | . 3 3 2 . . 1 . . 4 7 . 31 . . . . . 7 . . . . . 22 14 Classes Destroyed 23 | . 3 4 1 1 . . 2 . 1 . . 3 . . . 1 . 2 2 1 . . . . 2 Worker 21 | . . 6 . . . . 1 1 . . . . . . . . . . . 1 . . 2 6 4 Builder 16 | . 1 1 1 . . 1 . . . . . . . . . . . . 3 1 . . 4 3 1 Tunneler 5 | . . 2 . . . . . . . . . . . 1 . . . . . . . . . 1 1 Hauler 9 | . . . 2 . . . 2 . . . . . . . . . . . 1 . . . 1 2 1 Recycler 14 | . . 1 2 . . 2 2 . . . . . . 1 . . . . . 2 . . 1 . 3 Mechanic 2 | . . . . . . . . . . . . . . . . . . 1 . . . . . . 1 Operator 1 | . . . . . . . . . . . . . . . . . . . . . . . . . 1 Watcher 8 | . . . . . . . 1 1 . . . . . . . . . . 1 . . . 1 3 1 Swarmer 45 | . 3 3 3 . . . . . . 4 . . 3 . 4 5 . . . 1 . . . 9 10 Saboteur 3 | . . . . . . . . . . . . . . . . . . 1 . . . . . 2 . Grunt 77 | . 2 2 3 5 . 5 1 . 10 1 . . . 1 3 . . 7 1 2 . . . 15 19 Brawler 5 | . . . . 1 . 1 . . . 2 . . . . . . . . . . . . . . 1 Duelist 11 | . . . . . . . . . 2 1 . . . . 1 1 . 1 . . . . . 4 1 Sentry 21 | . . . . . . . 2 2 1 1 . . . 3 . 1 . . . 5 . . 3 3 . Specialist 2 | . . . . . . . . . . . . . . . . . . . . . . . . . 2 Hunter 12 | . . . . . . . . . . . . . . . . 2 . . 1 3 1 . 5 . . Programmer 14 | . . . . . . . . . . . . . . . . . . . 2 . . . . 6 6 Heavy 3 | . . . . . . . . . . . . . . . . . . . 1 . . . 1 . 1 Behemoth 3 | . . . . . . . . . . . . . . . . . . . . 2 . . . 1 . Z-Light 1 | . . . . . . . . . . . . 1 . . . . . . . . . . . . . Assembler 2 | . . . . . . . . . . . . 2 . . . . . . . . . . . . . Assembled 32 | . . 1 . . . . . . . . . 31 . . . . . . . . . . . . . Golem 12 | . . . . . . . . . . . . 12 . . . . . . . . . . . . . Thug 1 | . . . . . . . . . . . . . . . . . . . . . . . 1 . . Best Kill Streak 33 | . 4 3 5 3 . 3 4 2 9 5 . 33 3 2 4 4 . 7 2 3 1 . 4 18 19 Combat Bots Only 31 | . 3 3 3 3 . 3 1 1 9 5 . 31 3 2 4 4 . 6 2 2 1 . 3 10 15 Max Kills in Single Turn 15 | . 4 3 4 2 . 1 2 1 3 4 . 15 1 1 2 1 . 3 2 2 1 . 2 6 5 Gunslinging 1 | . . . . 1 . . . . . . . . . . . . . . . . . . . . . Exploded 15 | . 3 3 2 . . 1 . . 3 3 . 15 . . . . . 3 . . . . . 6 4 Melee 1 | . . 1 1 . . . . . . . . 1 . . . . . 1 . . . . . . . Uniques/NPCs Destroyed 2 | . . 1 . . . . . . . . . 1 . . . . . . . . . . . . . YI-UF0 (-10/Mines) Z-Imprinter (-7/Deep Caves) Combat | -11 -10 -10 -9 -9 -9 -8 -8 -7 -7 -7 -7 -7 -6 -6 -6 -6 -6 -5 -5 -5 -5 -5 -5 -4 -3 -------- Run | Scr Mat Min Mat Min Exi Min Mat Fac Low Low Zio Dee Pro Fac Low Low Dat Pro Fac Ext Cet Arc Hub Fac Res Damage Taken 15383 | . 279 137 203 78 . 270 88 212 292 152 294 997 399 130 373 193 . 432 447 627 89 . 1446 2109 6136 Core 1917 | . 25 41 36 . . 13 . 5 28 . . 79 10 3 15 2 . . 14 62 . . 65 152 1367 Absorbed by Shields 587 | . . . . . . . . . . . . . . 50 139 76 . 152 5 123 42 . . . . Redirected to Shielding 184 | . . . . . . . . . . . . 184 . . . . . . . . . . . . . Regen/Repaired (Parts) 87 | . . . . . . . 87 . . . . . . . . . . . . . . . . . . Core Remaining (%) 88 | 100 . 73 . . . 87 100 . . . . . 82 . . . . 97 . . . . 85 86 . Volleys Fired 459 | . 13 9 11 9 . 14 12 11 19 10 . 44 18 13 27 14 . 15 22 42 8 . 36 56 56 Largest 3 | . 2 2 2 2 . 2 2 3 3 3 . 3 2 3 3 3 . 3 3 3 3 . 3 3 3 Hottest 165 | . 115 70 70 98 . 98 125 75 75 75 . 165 50 75 75 75 . 75 75 75 75 . 110 110 75 Shots Fired 1039 | . 25 12 12 18 . 26 24 23 51 18 . 103 21 34 59 42 . 24 53 121 14 . 86 127 146 Gun 294 | . 24 11 11 18 . 24 24 23 48 13 . 86 . . . . . . . . . . 3 9 . Cannon 701 | . . . . . . . . . . . . 5 21 34 59 42 . 15 53 121 14 . 83 114 140 Launcher 44 | . 1 1 1 . . 2 . . 3 5 . 12 . . . . . 9 . . . . . 4 6 Special . | . . . . . . . . . . . . . . . . . . . . . . . . . . Kinetic 162 | . 11 2 1 9 . 12 7 23 48 13 . 20 . . . . . . . . . . . . 16 Thermal 736 | . 13 2 . 9 . 12 10 . . . . 10 21 34 59 42 . 15 53 121 14 . 83 114 124 Explosive 44 | . 1 1 1 . . 2 . . 3 5 . 12 . . . . . 9 . . . . . 4 6 Electromagnetic 85 | . . 7 10 . . . 7 . . . . 61 . . . . . . . . . . . . . Phasic 12 | . . . . . . . . . . . . . . . . . . . . . . . 3 9 . Robot Hit Streak 34 | . 5 2 5 6 . 9 17 18 21 7 . 34 6 18 11 13 . 14 18 18 2 . 21 20 20 Robot Miss Streak 20 | . 2 3 4 2 . 2 1 3 2 1 . 5 . 1 2 1 . 2 2 2 3 . 3 8 20 Penetration Max . | . . . . . . . . . . . . . . . . . . . . . . . . . . Secondary Targets 3 | . . . . 1 . 2 . . . . . . . . . . . . . . . . . . . Max Gunslinging Chain 1 | . . . . 1 . 1 . . . . . . . . . . . . . . . . . . . Autonomous 16 | . . . . . . . . . . . . . . . . . . . . . . . . . 16 Shots Hit Robots 703 | . 13 25 16 11 . 16 19 15 38 12 . 101 4 21 32 19 . 18 28 80 3 . 55 75 102 Core Hits 692 | . 9 9 9 7 . 14 12 7 26 21 . 127 3 7 9 8 . 47 11 26 1 . 30 142 167 Critical Kills 2 | . . . . . . . 1 . . . . 1 . . . . . . . . . . . . . Critical Parts Destroyed 10 | . . 2 2 . . . . . . . . 6 . . . . . . . . . . . . . Critical Strikes 23 | . . 2 2 1 . 1 3 . . . . 11 . . . . . . . . . . . . 3 Burn 4 | . . . . 1 . 1 2 . . . . . . . . . . . . . . . . . . Destroy 1 | . . . . . . . 1 . . . . . . . . . . . . . . . . . . Blast 3 | . . . . . . . . . . . . . . . . . . . . . . . . . 3 Corrupt 4 | . . . . . . . . . . . . 4 . . . . . . . . . . . . . Smash 11 | . . 2 2 . . . . . . . . 7 . . . . . . . . . . . . . Melee Attacks 97 | . . 31 14 . . . 1 . . . 10 41 . . . . . . . . . . . . . Impact 97 | . . 31 14 . . . 1 . . . 10 41 . . . . . . . . . . . . . Slashing . | . . . . . . . . . . . . . . . . . . . . . . . . . . Piercing . | . . . . . . . . . . . . . . . . . . . . . . . . . . Sneak Attacks 17 | . . 14 3 . . . . . . . . . . . . . . . . . . . . . . Combat Hostiles . | . . . . . . . . . . . . . . . . . . . . . . . . . . Follow-up Attacks 3 | . . 3 . . . . . . . . . . . . . . . . . . . . . . . Damage Inflicted 42392 | . 371 1754 874 240 . 497 472 263 960 1169 . 5177 157 977 1543 874 . 2010 1393 4238 139 . 2925 7206 9153 Guns 3721 | . 178 59 109 221 . 297 347 263 607 169 . 1207 . . . . . . . . . . 66 198 . Cannons 21324 | . . . . . . . . . . . . 110 157 977 1543 874 . 536 1393 4185 139 . 2729 3060 5621 Explosions 13807 | . 191 208 227 . . 200 106 . 353 1000 . 2518 . . . . . 1474 . . . . 130 3948 3452 Melee 3367 | . . 1487 538 . . . . . . . . 1342 . . . . . . . . . . . . . Ramming 173 | . 2 . . 19 . . 19 . . . . . . . . . . . . 53 . . . . 80 Kinetic 2672 | . 103 15 16 71 . 89 80 263 607 169 . 196 . . . . . . . . . . . . 1063 Thermal 21216 | . 75 73 26 150 . 208 231 . . . . 179 157 977 1543 874 . 536 1393 4185 139 . 2729 3183 4558 Explosive 13103 | . 191 135 201 . . 200 . . 353 1000 . 2518 . . . . . 1474 . . . . . 3579 3452 Electromagnetic 1597 | . . 44 93 . . . 142 . . . . 942 . . . . . . . . . . 130 246 . Impact 3367 | . . 1487 538 . . . . . . . . 1342 . . . . . . . . . . . . . Slashing . | . . . . . . . . . . . . . . . . . . . . . . . . . . Piercing . | . . . . . . . . . . . . . . . . . . . . . . . . . . Phasic 264 | . . . . . . . . . . . . . . . . . . . . . . . 66 198 . Highest Corruption 16 | . . 8 . . . . . . . . 3 . . . . . . . 2 2 . . . 4 16 Average Corruption 3 | . . 7 . . . . . . . . 3 . . . . . . . 1 1 . . . 1 5 Corruption Purged 2 | . . . . . . . . . . . . . . . . . . . . 2 . . . . . Corruption Blocked . | . . . . . . . . . . . . . . . . . . . . . . . . . . Effects 77 | . . 18 . . . . . . . . 5 . . . . . . . 5 12 . . . 9 28 Message Errors 18 | . . 1 . . . . . . . . 2 . . . . . . . 2 3 . . . 1 9 Matter Fused 16 | . . 6 . . . . . . . . 1 . . . . . . . 1 2 . . . 2 4 Heat Flow Errors 3 | . . 2 . . . . . . . . . . . . . . . . . . . . . . 1 Energy Discharges 15 | . . 6 . . . . . . . . 1 . . . . . . . . 3 . . . 3 2 Parts Rejected 1 | . . . . . . . . . . . . . . . . . . . . . . . . . 1 Data Loss (minor) 8 | . . 1 . . . . . . . . . . . . . . . . . 1 . . . . 6 Data Loss (major) 4 | . . 1 . . . . . . . . 1 . . . . . . . . 1 . . . . 1 Misfires 5 | . . 1 . . . . . . . . . . . . . . . . 1 . . . . 1 2 Alerts 5 | . . . . . . . . . . . . . . . . . . . 1 2 . . . 1 1 Misdirections 1 | . . . . . . . . . . . . . . . . . . . . . . . . . 1 Weapon Failures 1 | . . . . . . . . . . . . . . . . . . . . . . . . 1 . Overload Shots . | . . . . . . . . . . . . . . . . . . . . . . . . . . Overflow Damage 2847 | . . 748 169 . . 4 15 . 14 50 . 519 . 108 116 74 . 75 125 159 3 . 127 168 373 Projectiles 1132 | . . . . . . . . . . . . . . 108 116 74 . 65 125 159 3 . 77 55 350 Explosions 365 | . . 21 1 . . 4 15 . 14 50 . 64 . . . . . 10 . . . . 50 113 23 Melee 1350 | . . 727 168 . . . . . . . . 455 . . . . . . . . . . . . . Knockbacks 23 | . . 4 2 . . . . . . . . 10 . . . . . . . . . . . . 7 Impact 17 | . . 4 2 . . . . . . . . 10 . . . . . . . . . . . . 1 Kinetic 5 | . . . . . . . . . . . . . . . . . . . . . . . . . 5 Secondary 1 | . . . . . . . . . . . . . . . . . . . . . . . . . 1 Self-Inflicted Damage 519 | . . . 30 . . 36 38 . . . . 25 . . . . . . . . . . 57 214 119 Shots 17 | . . . 1 . . 1 1 . . . . 1 . . . . . . . . . . 1 7 5 Rammed 15 | . . . . 3 . . 2 . . . . . . . . . . . . . . . . . 10 Targets Rammed 20 | . 1 . . 3 . . 2 . . . . . . . . . . . . 1 . . . . 13 Kicked 5 | . 1 . . . . . . . . . . . . . . . . . . 1 . . . . 3 Crushed . | . . . . . . . . . . . . . . . . . . . . . . . . . . Highest Temperature 200 | . . 144 . 2 . 8 9 . 2 . . 81 . . . . . . . . . . . 25 200 Average Temperature 26 | . . 71 . 2 . 8 6 . 2 . . 27 . . . . . . . . . . . 9 62 Received Heat Transfer 2793 | . 156 57 96 45 . 126 9 87 72 9 . 150 . 36 132 8 . 186 . 83 8 . 153 320 1060 Siege Activations . | . . . . . . . . . . . . . . . . . . . . . . . . . . Robots Corrupted 6 | . . . 1 . . . . . . . . 5 . . . . . . . . . . . . . Combat Hostiles 5 | . . . . . . . . . . . . 5 . . . . . . . . . . . . . Parts Fried 18 | . . 10 6 . . . 1 . . . . . . . . . . . . 1 . . . . . Impact Corruptions 42 | . . 25 6 . . . . . . . . 11 . . . . . . . . . . . . . Robots Melted . | . . . . . . . . . . . . . . . . . . . . . . . . . . Combat Hostiles . | . . . . . . . . . . . . . . . . . . . . . . . . . . Parts Melted 26 | . 1 . 1 . . . . 3 . . . . . 2 1 1 . . 3 1 1 . 6 4 2 Heat Transferred 12692 | . 222 50 50 333 . 444 570 . . . . 124 100 525 850 475 . 300 750 2199 75 . 1550 1800 2275 Parts Sabotaged 1 | . . . . . . . . . . . . . . . . . . . . . . . . . 1 Parts Stolen . | . . . . . . . . . . . . . . . . . . . . . . . . . . Parts Stripped . | . . . . . . . . . . . . . . . . . . . . . . . . . . Power Chain Reactions 4 | . . 1 1 . . . 2 . . . . . . . . . . . . . . . . . . Missiles Intercepted . | . . . . . . . . . . . . . . . . . . . . . . . . . . Alert | -11 -10 -10 -9 -9 -9 -8 -8 -7 -7 -7 -7 -7 -6 -6 -6 -6 -6 -5 -5 -5 -5 -5 -5 -4 -3 ------- Run | Scr Mat Min Mat Min Exi Min Mat Fac Low Low Zio Dee Pro Fac Low Low Dat Pro Fac Ext Cet Arc Hub Fac Res Peak Influence 1897 | . 177 230 185 140 . 153 70 149 . . . . . 119 . . . . 208 515 631 341 323 1781 1897 Initial 1100 | . . 69 1 21 . . 3 20 . . . . . . . . . . 88 46 252 252 . 100 1100 Average 255 | . 36 75 90 47 . 101 32 51 . . . . . 37 . . . . 74 220 459 68 145 651 1401 Maximum Alert Level 5 | . . 1 . . . . . . . . . . . . . . . . 1 2 2 1 1 5 5 Low Security (%) 74 | 100 100 88 100 100 . 100 100 100 . . . . . 100 . . . . 96 62 4 85 73 23 . Level 1 7 | . . 11 . . . . . . . . . . . . . . . . 3 11 39 14 26 13 . Level 2 6 | . . . . . . . . . . . . . . . . . . . . 26 56 . . 33 . Level 3 . | . . . . . . . . . . . . . . . . . . . . . . . . 1 . Level 4 7 | . . . . . . . . . . . . . . . . . . . . . . . . 22 66 Level 5 2 | . . . . . . . . . . . . . . . . . . . . . . . . . 27 High Security . | . . . . . . . . . . . . . . . . . . . . . . . . 5 5 Max Security . | . . . . . . . . . . . . . . . . . . . . . . . . . . Squads Dispatched 45 | . 2 1 1 . . . . 4 . 1 . . . . . . . 2 2 2 . . 2 11 17 Investigation 3 | . . 1 . . . . . 1 . . . . . . . . . . . . . . . 1 . Extermination 7 | . . . . . . . . 1 . . . . . . . . . . 1 . . . . 2 3 Reinforcement 15 | . 2 . 1 . . . . . . . . . . . . . . . 1 2 . . 2 1 6 Assault 15 | . . . . . . . . . . 1 . . . . . . . 2 . . . . . 4 8 Garrison 5 | . . . . . . . . 2 . . . . . . . . . . . . . . . 3 . Intercept . | . . . . . . . . . . . . . . . . . . . . . . . . . . Searches Triggered . | . . . . . . . . . . . . . . . . . . . . . . . . . . Data Miner Redirects 7 | . . . . . . . . . . . . . . . . . . . . . . . . 2 5 Construction Impeded 2 | . . . . . . . . . . . . . . . . . . . . 1 . . . 1 . Haulers Reinforced 2 | . . . . . . . . . . . . . . . . . . . 1 . . . . . 1 Active Scanning Responses . | . . . . . . . . . . . . . . . . . . . . . . . . . . Cargo Convoy Interrupts . | . . . . . . . . . . . . . . . . . . . . . . . . . . Stealth | -11 -10 -10 -9 -9 -9 -8 -8 -7 -7 -7 -7 -7 -6 -6 -6 -6 -6 -5 -5 -5 -5 -5 -5 -4 -3 --------- Run | Scr Mat Min Mat Min Exi Min Mat Fac Low Low Zio Dee Pro Fac Low Low Dat Pro Fac Ext Cet Arc Hub Fac Res Distress Signals 12 | . . . 1 . . . 1 1 . . . . . 1 . . . . . 2 1 1 . 1 3 Communications Jammed 59 | . . . . . . . . . . . . . . . . . . . 6 . . . 18 . 35 Distress Signals 50 | . . . . . . . . . . . . . . . . . . . . . . . 18 . 32 Times Spotted 350 | . 8 6 9 6 . 6 4 5 13 10 . 64 3 6 8 9 . 13 6 29 13 2 15 40 75 Peak Tracking Total 38 | . 4 3 3 3 . 3 2 1 9 11 . 38 3 2 4 3 . 7 2 4 5 1 5 9 18 Tactical Retreats 11 | . . . . . . . . . . 2 . 2 . . 1 . . . . . 1 . . 1 4 Traps | -11 -10 -10 -9 -9 -9 -8 -8 -7 -7 -7 -7 -7 -6 -6 -6 -6 -6 -5 -5 -5 -5 -5 -5 -4 -3 ------- Run | Scr Mat Min Mat Min Exi Min Mat Fac Low Low Zio Dee Pro Fac Low Low Dat Pro Fac Ext Cet Arc Hub Fac Res Traps Triggered 18 | . 2 . . . . . . 4 . . . . . . . . . . . 8 . . . 3 1 Indirectly 1 | . . . . . . . . . . . . . . . . . . . . . . . . 1 . Trap Hack Attempts . | . . . . . . . . . . . . . . . . . . . . . . . . . . Triggered . | . . . . . . . . . . . . . . . . . . . . . . . . . . Disarmed . | . . . . . . . . . . . . . . . . . . . . . . . . . . Reprogrammed . | . . . . . . . . . . . . . . . . . . . . . . . . . . Reused . | . . . . . . . . . . . . . . . . . . . . . . . . . . Traps Extracted . | . . . . . . . . . . . . . . . . . . . . . . . . . . Installed . | . . . . . . . . . . . . . . . . . . . . . . . . . . Triggered 2 | . . . . . . . . . 2 . . . . . . . . . . . . . . . . Machines | -11 -10 -10 -9 -9 -9 -8 -8 -7 -7 -7 -7 -7 -6 -6 -6 -6 -6 -5 -5 -5 -5 -5 -5 -4 -3 ---------- Run | Scr Mat Min Mat Min Exi Min Mat Fac Low Low Zio Dee Pro Fac Low Low Dat Pro Fac Ext Cet Arc Hub Fac Res Machines Disabled 52 | . . . 1 . . . 1 1 . . . 3 . 1 . . . . 3 4 5 1 6 23 3 Max in Single Turn 11 | . . . 1 . . . 1 . . . . 1 . 1 . . . . 2 1 1 . 2 11 1 Garrison Access 3 | . . . . . . . . . . . . . . . . . . . . . . . 1 2 . Network Hub 1 | . . . . . . . . . . . . . . . . . . . . . . . 1 . . Machines Sabotaged . | . . . . . . . . . . . . . . . . . . . . . . . . . . Garrisons Compromised . | . . . . . . . . . . . . . . . . . . . . . . . . . . Overloaded Fab Kills . | . . . . . . . . . . . . . . . . . . . . . . . . . . Hacking | -11 -10 -10 -9 -9 -9 -8 -8 -7 -7 -7 -7 -7 -6 -6 -6 -6 -6 -5 -5 -5 -5 -5 -5 -4 -3 --------- Run | Scr Mat Min Mat Min Exi Min Mat Fac Low Low Zio Dee Pro Fac Low Low Dat Pro Fac Ext Cet Arc Hub Fac Res Machines Accessed 43 | . 2 2 4 . 2 . 2 6 1 . . . 1 1 1 . 4 . 2 6 1 . 4 1 3 Terminals 27 | . 2 1 4 . . . 1 5 . . . . 1 . . . . . 1 5 1 . 3 1 2 Fabricators 3 | . . . . . . . . 1 . . . . . . . . . . 1 . . . . . 1 Repair Stations 1 | . . . . . . . 1 . . . . . . . . . . . . . . . . . . Recycling Units 1 | . . . . . . . . . . . . . . . . . . . . 1 . . . . . Scanalyzers 1 | . . . . . . . . . . . . . . 1 . . . . . . . . . . . Garrison Access 1 | . . . . . . . . . . . . . . . . . . . . . . . 1 . . Total Hacks 102 | . 6 2 8 . 2 . 3 14 1 . . . 2 5 1 . 32 . 3 8 1 . 7 3 4 Successful 64 | . 3 2 1 . 2 . 2 4 1 . . . 2 5 1 . 32 . . 2 . . 5 . 2 Failed 38 | . 3 . 7 . . . 1 10 . . . . . . . . . . 3 6 1 . 2 3 2 Catastrophic 10 | . . . 3 . . . 1 . . . . . . . . . . . 1 2 1 . . 1 1 Database Lockouts . | . . . . . . . . . . . . . . . . . . . . . . . . . . Manual 37 | . 6 . 8 . 1 . 1 6 . . . . . . . . . . . 6 . . 6 3 . Terminals 52 | . 6 1 8 . . . 1 13 . . . . 2 . . . . . 1 7 1 . 6 3 3 Fabricators 4 | . . . . . . . . 1 . . . . . . . . . . 2 . . . . . 1 Repair Stations 2 | . . . . . . . 2 . . . . . . . . . . . . . . . . . . Recycling Units 1 | . . . . . . . . . . . . . . . . . . . . 1 . . . . . Scanalyzers 5 | . . . . . . . . . . . . . . 5 . . . . . . . . . . . Garrison Access 1 | . . . . . . . . . . . . . . . . . . . . . . . 1 . . Terminal Hacks 49 | . 3 2 . . 2 . . 1 1 . . . 2 . 1 . 32 . . 1 . . 3 . 1 Record 14 | . . . . . 1 . . . . . . . 2 . . . 11 . . . . . . . . Part Schematic 13 | . . . . . . . . . . . . . . . . . 13 . . . . . . . . Robot Schematic 5 | . . . . . . . . . . . . . . . . . 5 . . . . . . . . Prototype ID Bank 3 | . . . . . . . . . . . . . . . . . 3 . . . . . . . . Open Door 4 | . . 1 . . . . . . 1 . . . . . 1 . . . . 1 . . . . . Open DSF 1 | . . . . . . . . . . . . . . . . . . . . . . . . . 1 Branch Access Points 2 | . 1 . . . . . . 1 . . . . . . . . . . . . . . . . . Alert Level 1 | . 1 . . . . . . . . . . . . . . . . . . . . . . . . Unreport Threat 2 | . . . . . . . . . . . . . . . . . . . . . . . 2 . . Zone Layout 3 | . 1 1 . . . . . . . . . . . . . . . . . . . . 1 . . EX-Prototype ID Bank 1 | . . . . . 1 . . . . . . . . . . . . . . . . . . . . Fabricator Hacks 2 | . . . . . . . . 1 . . . . . . . . . . . . . . . . 1 Network Status 1 | . . . . . . . . 1 . . . . . . . . . . . . . . . . . Build 1 | . . . . . . . . . . . . . . . . . . . . . . . . . 1 Repair Station Hacks 2 | . . . . . . . 2 . . . . . . . . . . . . . . . . . . Scan Component 1 | . . . . . . . 1 . . . . . . . . . . . . . . . . . . Repair 1 | . . . . . . . 1 . . . . . . . . . . . . . . . . . . Recycling Unit Hacks . | . . . . . . . . . . . . . . . . . . . . . . . . . . Scanalyzer 5 | . . . . . . . . . . . . . . 5 . . . . . . . . . . . Insert Component 3 | . . . . . . . . . . . . . . 3 . . . . . . . . . . . Analyze 2 | . . . . . . . . . . . . . . 2 . . . . . . . . . . . Garrison Access Hacks 1 | . . . . . . . . . . . . . . . . . . . . . . . 1 . . Seal Access 1 | . . . . . . . . . . . . . . . . . . . . . . . 1 . . Unauthorized Hacks 5 | . . . 1 . . . . 2 . . . . . . . . . . . 1 . . 1 . . Terminals 4 | . . . 1 . . . . 2 . . . . . . . . . . . . . . 1 . . Botnet 3 | . . . 1 . . . . 2 . . . . . . . . . . . . . . . . . Detonate 1 | . . . . . . . . . . . . . . . . . . . . . . . 1 . . Fabricators . | . . . . . . . . . . . . . . . . . . . . . . . . . . Repair Stations . | . . . . . . . . . . . . . . . . . . . . . . . . . . Recycling Units 1 | . . . . . . . . . . . . . . . . . . . . 1 . . . . . Recyclers 1 | . . . . . . . . . . . . . . . . . . . . 1 . . . . . Scanalyzers . | . . . . . . . . . . . . . . . . . . . . . . . . . . Garrison Access . | . . . . . . . . . . . . . . . . . . . . . . . . . . Data Cores Recovered . | . . . . . . . . . . . . . . . . . . . . . . . . . . Used . | . . . . . . . . . . . . . . . . . . . . . . . . . . Hacking Detections 30 | . 1 1 4 . . . 2 6 . . . . . 1 . . . . 2 5 1 . 3 1 3 Full Trace Events 1 | . . . . . . . . 1 . . . . . . . . . . . . . . . . . Feedback Events . | . . . . . . . . . . . . . . . . . . . . . . . . . . Feedback Blocked . | . . . . . . . . . . . . . . . . . . . . . . . . . . Robot Schematics Acquired 5 | . . . . . . . . . . . . . . . . . 5 . . . . . . . . Robots Built . | . . . . . . . . . . . . . . . . . . . . . . . . . . Authchips . | . . . . . . . . . . . . . . . . . . . . . . . . . . Time 76 | . . . . . . . . . . . . . . . . . . . . . . . . . 76 Total Robot Build Rating . | . . . . . . . . . . . . . . . . . . . . . . . . . . Part Schematics Acquired 15 | . . . . . . . . . . . . . . 2 . . 13 . . . . . . . . Parts Built . | . . . . . . . . . . . . . . . . . . . . . . . . . . Authchips . | . . . . . . . . . . . . . . . . . . . . . . . . . . Time . | . . . . . . . . . . . . . . . . . . . . . . . . . . Total Part Build Rating . | . . . . . . . . . . . . . . . . . . . . . . . . . . Parts Repaired 1 | . . . . . . . 1 . . . . . . . . . . . . . . . . . . Time 26 | . . . . . . . 26 . . . . . . . . . . . . . . . . . . Parts Recycled . | . . . . . . . . . . . . . . . . . . . . . . . . . . Recycled Matter . | . . . . . . . . . . . . . . . . . . . . . . . . . . Retrieved Matter . | . . . . . . . . . . . . . . . . . . . . . . . . . . Retrieved Components . | . . . . . . . . . . . . . . . . . . . . . . . . . . Parts Scanalyzed 2 | . . . . . . . . . . . . . . 2 . . . . . . . . . . . Part Schematics Acquired 2 | . . . . . . . . . . . . . . 2 . . . . . . . . . . . Parts Damaged . | . . . . . . . . . . . . . . . . . . . . . . . . . . Bothacking | -11 -10 -10 -9 -9 -9 -8 -8 -7 -7 -7 -7 -7 -6 -6 -6 -6 -6 -5 -5 -5 -5 -5 -5 -4 -3 ------------ Run | Scr Mat Min Mat Min Exi Min Mat Fac Low Low Zio Dee Pro Fac Low Low Dat Pro Fac Ext Cet Arc Hub Fac Res Used RIF Installer . | . . . . . . . . . . . . . . . . . . . . . . . . . . Robots Hacked . | . . . . . . . . . . . . . . . . . . . . . . . . . . Non-combat . | . . . . . . . . . . . . . . . . . . . . . . . . . . Combat . | . . . . . . . . . . . . . . . . . . . . . . . . . . Robot Hacks Applied . | . . . . . . . . . . . . . . . . . . . . . . . . . . Relay Couplers Released 3 | . . . . . . . . . . . . . . . . . . . . . . . . 3 . Machine Destruction 3 | . . . . . . . . . . . . . . . . . . . . . . . . 3 . Fabnet Peak Effective % . | . . . . . . . . . . . . . . . . . . . . . . . . . . Robots Rewired 15 | . . . . . . . . . 2 2 . . . . . . . . . 11 . . . . . Allies Hacked . | . . . . . . . . . . . . . . . . . . . . . . . . . . Hacks Repelled . | . . . . . . . . . . . . . . . . . . . . . . . . . . Allies | -11 -10 -10 -9 -9 -9 -8 -8 -7 -7 -7 -7 -7 -6 -6 -6 -6 -6 -5 -5 -5 -5 -5 -5 -4 -3 -------- Run | Scr Mat Min Mat Min Exi Min Mat Fac Low Low Zio Dee Pro Fac Low Low Dat Pro Fac Ext Cet Arc Hub Fac Res Total Allies 37 | . . . . . . . . 3 2 2 2 1 . . . . . 1 . 26 . . . . . Largest Group 19 | . . . . . . . . 3 2 3 5 6 . . . . . 1 1 19 19 11 5 . . Highest-Rated Group 668 | . . . . . . . . 93 52 94 153 272 . . . . . 96 96 668 668 449 127 . . Highest-Rated Ally 159 | . . . . . . . . 31 32 32 39 119 . . . . . 96 96 159 159 159 31 . . Total Orders . | . . . . . . . . . . . . . . . . . . . . . . . . . . Ally Attacks 376 | . . . . . . . . 34 1 5 . 92 . . . . . 17 5 96 74 48 4 . . Total Damage 9814 | . . . . . . . . 482 27 96 . 4330 . . . . . 506 92 1911 1365 913 92 . . Kills 74 | . . . . . . . . 2 . 3 . 33 . . . . . 3 . 14 12 6 1 . . Allies Corrupted . | . . . . . . . . . . . . . . . . . . . . . . . . . . Allies Melted 2 | . . . . . . . . . . . . . . . . . . . 1 1 . . . . . Intel | -11 -10 -10 -9 -9 -9 -8 -8 -7 -7 -7 -7 -7 -6 -6 -6 -6 -6 -5 -5 -5 -5 -5 -5 -4 -3 ------- Run | Scr Mat Min Mat Min Exi Min Mat Fac Low Low Zio Dee Pro Fac Low Low Dat Pro Fac Ext Cet Arc Hub Fac Res Robot Analysis Total . | . . . . . . . . . . . . . . . . . . . . . . . . . . Derelict Logs Recovered 12 | . . 2 . 1 . . . . . . 2 . 2 . 1 2 . 2 . . . . . . . Drone Launches . | . . . . . . . . . . . . . . . . . . . . . . . . . . Drone Recoveries . | . . . . . . . . . . . . . . . . . . . . . . . . . . Exploration | -11 -10 -10 -9 -9 -9 -8 -8 -7 -7 -7 -7 -7 -6 -6 -6 -6 -6 -5 -5 -5 -5 -5 -5 -4 -3 ------------- Run | Scr Mat Min Mat Min Exi Min Mat Fac Low Low Zio Dee Pro Fac Low Low Dat Pro Fac Ext Cet Arc Hub Fac Res Turns Passed 28165 | 1 210 1236 719 962 841 519 954 886 788 646 3222 3730 528 461 1283 838 152 638 1251 2320 199 2790 557 1044 1390 Spaces Moved 10482 | 1 123 919 401 578 364 147 348 347 301 257 1313 1208 249 193 474 410 81 311 342 727 95 61 217 413 602 Core 102 | . . . . . . . . . . . . . . . . . . . . . . . . . 102 Treads 4528 | . . . 318 578 364 147 348 347 301 257 1313 555 . . . . . . . . . . . . . Legs 5852 | 1 123 919 83 . . . . . . . . 653 249 193 474 410 81 311 342 727 95 61 217 413 500 Wheels . | . . . . . . . . . . . . . . . . . . . . . . . . . . Hover . | . . . . . . . . . . . . . . . . . . . . . . . . . . Flight . | . . . . . . . . . . . . . . . . . . . . . . . . . . Fastest Speed 50 | 120 120 120 120 160 160 320 240 240 240 240 240 189 189 189 189 189 189 189 185 185 185 185 185 185 50 Average Speed 197 | 120 120 120 151 160 230 320 240 240 240 240 242 233 189 209 189 189 189 189 187 185 185 185 185 185 141 Slowest Speed 320 | 120 190 120 240 160 320 320 240 320 240 240 320 320 189 242 189 189 189 189 189 185 185 185 185 185 226 Overloaded Moves . | . . . . . . . . . . . . . . . . . . . . . . . . . . Propulsion Burnouts . | . . . . . . . . . . . . . . . . . . . . . . . . . . Robots Hopped . | . . . . . . . . . . . . . . . . . . . . . . . . . . Cave-ins Triggered 2 | . . . . . . . . . . . 1 . 1 . . . . . . . . . . . . Exploration Rate (%) 48 | 2 30 96 39 95 70 37 26 10 52 51 85 88 42 9 68 51 69 44 11 78 62 72 35 14 32 Regions Visited 25 Branch Regions 17 Pre-discovered Areas 5 | . . . . . 1 . . . . . 2 . . . 1 . 1 . . . . . . . . Known Exits Taken 6 | . 1 . . . . . . 1 . . . . . 1 . . . 1 1 . . . . 1 . Unknown Exits Taken 19 | 1 . 1 1 1 1 1 1 . 1 1 1 1 1 . 1 1 1 . . 1 1 1 1 . . Scrap Searched 13 | . . 1 . 2 . 1 . . 2 1 2 . 1 . . 2 . 1 . . . . . . . Spaces Dug 97 | . . 2 3 . . . 1 . . 7 3 . 14 2 14 6 . 4 9 8 . . 4 14 6 Terrain Destroyed 709 | . 4 18 15 . . 23 6 . 2 17 3 2 17 7 25 23 . 47 17 28 1 . 180 170 104 Melee 9 | . . 2 3 . . . 1 . . . 3 . . . . . . . . . . . . . . Projectile 202 | . . . . . . . . . . . . 2 17 7 25 23 . 3 17 28 1 . 11 37 31 AOE 498 | . 4 16 12 . . 23 5 . 2 17 . . . . . . . 44 . . . . 169 133 73 Terrain Rammed . | . . . . . . . . . . . . . . . . . . . . . . . . . . Walls Destroyed . | . . . . . . . . . . . . . . . . . . . . . . . . . . Machines Disabled . | . . . . . . . . . . . . . . . . . . . . . . . . . . Actions | -11 -10 -10 -9 -9 -9 -8 -8 -7 -7 -7 -7 -7 -6 -6 -6 -6 -6 -5 -5 -5 -5 -5 -5 -4 -3 --------- Run | Scr Mat Min Mat Min Exi Min Mat Fac Low Low Zio Dee Pro Fac Low Low Dat Pro Fac Ext Cet Arc Hub Fac Res Total 17038 | 2 157 990 468 598 368 169 445 388 348 276 1343 2005 286 224 812 444 80 342 914 1617 107 2739 300 587 1029 Wait 5346 | . 2 10 12 1 1 4 39 7 1 . 2 618 18 9 300 11 . 1 529 690 2 2677 30 79 303 Move 10456 | . 122 918 400 577 363 146 347 346 300 256 1312 1207 247 192 473 409 80 310 341 726 94 60 216 412 602 Hop . | . . . . . . . . . . . . . . . . . . . . . . . . . . Pick Up 110 | . 5 5 8 4 2 . 16 4 1 . 5 17 1 2 4 4 . 5 2 6 . 1 4 5 9 Fast Attach 82 | . 7 6 8 . . . 5 2 2 . 2 11 . 4 2 . . 2 4 5 1 . 4 5 12 Attach 32 | . 1 1 . . . . 3 2 . . 1 6 . . . . . 1 . . . . 1 5 11 Detach 19 | . 1 . 1 . . . 1 . . . . 3 . . . . . . 3 . . . 1 4 5 Swap 63 | . 2 3 6 1 1 5 4 4 4 1 4 15 . . . 1 . 1 2 3 . . 2 3 1 Drop 199 | 2 3 11 8 3 1 . 15 6 5 . 7 40 1 4 6 5 . 7 11 21 2 1 6 17 17 Fire 459 | . 13 9 11 9 . 14 12 11 19 10 . 44 18 13 27 14 . 15 22 42 8 . 36 56 56 Melee 93 | . . 27 14 . . . 1 . . . 10 41 . . . . . . . . . . . . . Ram 10 | . . . . . . . . . . . . . . . . . . . . . . . . . 10 Kick 5 | . 1 . . . . . . . . . . . . . . . . . . 1 . . . . 3 Crush 5 | . . . . 3 . . 2 . . . . . . . . . . . . . . . . . . Escape Stasis 47 | . . . . . . . . 6 . . . . 1 . . . . . . 40 . . . . . Rewire 112 | . . . . . . . . . 16 9 . 3 . . . . . . . 83 . . . 1 . Trap . | . . . . . . . . . . . . . . . . . . . . . . . . . . Miscellaneous . | . . . . . . . . . . . . . . . . . . . . . . . . . . Route ------- -11/Scrapyard -10/Materials -10/Mines (discovered 2 exits: *Mat x2) -9/Materials (discovered 2 exits: *Mat / [*Min]) -9/Mines (discovered 4 exits: *Mat x2 / *Exi / [*Zio]) -9/Exiles -8/Mines -8/Materials -7/Factory (discovered 2 exits: *Low x2) -7/Lower Caves -7/Lower Caves -7/Zion (discovered 2 exits: [*Dee] / [*Pro]) -7/Deep Caves -6/Proximity Caves -6/Factory -6/Lower Caves -6/Lower Caves -6/Data Miner -5/Proximity Caves -5/Factory -5/Extension (discovered 2 exits: *Fac / *Cet) -5/Cetus -5/Archives -5/Hub_04(d) (discovered 2 exits: *Fac x2) -4/Factory -3/Research (discovered 1 exit: [*Res]) History --------- Turn | Location | Event 2 | -11/Scrapyard | Discovered new exit (range 0) 2 | -11/Scrapyard | Entered Materials 30 | -10/Materials | Identified exit to Mines 212 | -10/Materials | Entered Mines 224 | -10/Mines | Met a Derelict bent on vengeance 233 | -10/Mines | Learned Materials terminal intel 271 | -10/Mines | Met a Derelict shopkeep closing up shop 308 | -10/Mines | Build established: Mutant 342 | -10/Mines | Discovered new exit (range 9) 680 | -10/Mines | YI-UF0 nonchalantly dropped a Grenade Launcher on the ground 860 | -10/Mines | Discovered new exit (range 11) 874 | -10/Mines | Destroyed YI-UF0 886 | -10/Mines | Found Prototype Launcher 886 | -10/Mines | Identified YI-UF0's Doublenader 1200 | -10/Mines | Excavation squad dispatched 1200 | -10/Mines | A large section of the Mines collapsed 1281 | -10/Mines | Learned Materials trap positions 1448 | -10/Mines | Entered Materials 1448 | -9/Materials | Evolved 2 slots: Utility x2 1449 | -9/Materials | Loaded intel: 18 trap records 1450 | -9/Materials | Loaded intel: 12 terminal locations 1800 | -9/Materials | Discovered new exit (range 16) 2146 | -9/Materials | Discovered new exit (range 5) 2167 | -9/Materials | Entered Mines 2181 | -9/Mines | A Derelict revealed a hidden shortcut to a safe place 2227 | -9/Mines | Learned Materials trap positions 2322 | -9/Mines | Received a Rocket Launcher from a helpful Derelict 2446 | -9/Mines | Discovered new exit (range 10) 2651 | -9/Mines | Deemed a non-threat by the Exiles lab entrance 2651 | -9/Mines | Discovered new exit (range 5) 2813 | -9/Mines | Discovered new exit (range 6) 3129 | -9/Mines | Entered Exiles 3169 | -9/Exiles | Met 8R-AWN 3195 | -9/Exiles | Met EX-HEX 3254 | -9/Exiles | Met EX-DEC 3305 | -9/Exiles | Learned location of Zion (-7) 3347 | -9/Exiles | Met EX-BIN 3369 | -9/Exiles | Aligned with FarCom system 3371 | -9/Exiles | Given EX-Vault access code 3448 | -9/Exiles | Opened EX-Vault 3469 | -9/Exiles | Found AWS/Autocannon 3541 | -9/Exiles | Warned to stay clear of 0b10 Research branches 3934 | -9/Exiles | Discovered new exit (range 12) 3970 | -9/Exiles | Left Exiles lab with AWS/Autocannon 3970 | -9/Exiles | Entered Mines 4398 | -8/Mines | Build established: Scavenger-Mutant 4467 | -8/Mines | Discovered new exit (range 8) 4489 | -8/Mines | Entered Materials 4489 | -8/Materials | Evolved 2 slots: Propulsion x1, Utility x1 4490 | -8/Materials | Loaded intel: 16 trap records 4713 | -8/Materials | Repaired Lgt. Armor Plating 4735 | -8/Materials | Discovered new exit (range 12) 5389 | -8/Materials | Build established: Mutant 5443 | -8/Materials | Entered Factory 5443 | -7/Factory | Evolved 2 slots: Utility x1, Weapon x1 5555 | -7/Factory | Discovered new exit (range 11) 5853 | -7/Factory | Allied Derelicts emerged from ambush trap array 6129 | -7/Factory | Identified exit to Lower Caves 6154 | -7/Factory | Garrison activated, responded to threat 6329 | -7/Factory | Entered Lower Caves 6447 | -7/Lower Caves | Build established: Gunner 6619 | -7/Lower Caves | Attracted the attention of an 0b10 outpost 6704 | -7/Lower Caves | Destroyed 9 combat bots 7042 | -7/Lower Caves | Discovered new exit (range 16) 7117 | -7/Lower Caves | Entered another Lower Caves area 7117 | -7/Lower Caves | Accompanied by 2 allies 7428 | -7/Lower Caves | Encountered a Warlord checkpoint 7501 | -7/Lower Caves | Attracted the attention of an 0b10 outpost 7741 | -7/Lower Caves | Discovered new exit (range 8) 7763 | -7/Lower Caves | Entered Zion 7763 | -7/Zion | Accompanied by 3 allies 7795 | -7/Zion | Build established: Mutant 7916 | -7/Zion | Discovered new exit (range 16) 8121 | -7/Zion | Build established: Gunner 8902 | -7/Zion | Rebuked by Imprinter 9240 | -7/Zion | Gained Derelict followers 9411 | -7/Zion | Found Prototype Device 9411 | -7/Zion | Identified Phasing AFG 10347 | -7/Zion | Crushed by falling debris 10627 | -7/Zion | Build established: Mutant 10665 | -7/Zion | System corruption cleaned by Quarantine Array 10967 | -7/Zion | Discovered new exit (range 3) 10985 | -7/Zion | Entered Deep Caves 10985 | -7/Deep Caves | Accompanied by 5 allies 10989 | -7/Deep Caves | Met 5H-AD0 11290 | -7/Deep Caves | Build established: Tank 11609 | -7/Deep Caves | Z-Facility disabled 11641 | -7/Deep Caves | Attacked by Z-Imprinter 11658 | -7/Deep Caves | Allies destroyed Z-Imprinter 11778 | -7/Deep Caves | Found Prototype Protection 11779 | -7/Deep Caves | Identified Zio. Weapon Casing 11790 | -7/Deep Caves | Found Zio. Weapon Casing 12030 | -7/Deep Caves | Found Zio. Weapon Casing 12071 | -7/Deep Caves | Build established: Scavenger-Gunner 12217 | -7/Deep Caves | Spotted as-47723 12227 | -7/Deep Caves | Destroyed as-47723 12347 | -7/Deep Caves | Triggered Deep Caves wall 12355 | -7/Deep Caves | Exposed GOLEM chamber 12360 | -7/Deep Caves | Spotted AS-62954 12364 | -7/Deep Caves | Destroyed AS-62954 12367 | -7/Deep Caves | Spotted AS-07922 12371 | -7/Deep Caves | Destroyed AS-07922 12392 | -7/Deep Caves | Destroyed 31 combat bots 12443 | -7/Deep Caves | Found GOLEM Unit 12475 | -7/Deep Caves | Spotted as-52482 12485 | -7/Deep Caves | Destroyed as-52482 12834 | -7/Deep Caves | Found GOLEM Unit 13198 | -7/Deep Caves | Build established: Golem 13289 | -7/Deep Caves | Found Modified TNC 13379 | -7/Deep Caves | Discovered new exit (range 15) 13570 | -7/Deep Caves | Build established: Gunner 14027 | -7/Deep Caves | Found Zio. Weapon Casing 14354 | -7/Deep Caves | Found Zio. Weapon Casing 14597 | -7/Deep Caves | Found Unknown Device 14614 | -7/Deep Caves | Found GOLEM Unit 14715 | -7/Deep Caves | Entered Proximity Caves 14851 | -6/Proximity Caves | Learned 8 Factory zone layouts 14980 | -6/Proximity Caves | Spotted B-75 Beast 15078 | -6/Proximity Caves | Crushed by falling debris 15227 | -6/Proximity Caves | Discovered new exit (range 6) 15243 | -6/Proximity Caves | Entered Factory 15243 | -6/Factory | Evolved 2 slots: Propulsion x1, Utility x1 15244 | -6/Factory | Identified exit to Lower Caves 15308 | -6/Factory | Identified Mobile Assembly Unit 15704 | -6/Factory | Entered Lower Caves 15975 | -6/Lower Caves | Build established: Tank 16322 | -6/Lower Caves | Spotted B-75 Beast 16961 | -6/Lower Caves | Discovered new exit (range 13) 16987 | -6/Lower Caves | Entered another Lower Caves area 17145 | -6/Lower Caves | Attracted the attention of an 0b10 checkpoint 17251 | -6/Lower Caves | Learned 4 Factory zone layouts 17263 | -6/Lower Caves | Learned Factory stockpile data 17598 | -6/Lower Caves | Discovered new exit (range 10) 17825 | -6/Lower Caves | Entered Data Miner 17825 | -6/Data Miner | Discovered new exit (range 6) 17861 | -6/Data Miner | Met Data Miner 17897 | -6/Data Miner | Learned location of Section 7 (-2) 17897 | -6/Data Miner | Acquired the access code to Warlord's prototype stash 17929 | -6/Data Miner | Received God Mode back door access code from Data Miner 17977 | -6/Data Miner | Entered Proximity Caves 18090 | -5/Proximity Caves | Derelict sapper outpost attacked 18173 | -5/Proximity Caves | Escorted by Enhanced Grunt 18243 | -5/Proximity Caves | Encountered a Derelict sapper outpost 18316 | -5/Proximity Caves | Identified exit to Factory 18469 | -5/Proximity Caves | Learned Factory emergency access door positions 18487 | -5/Proximity Caves | Build established: Mutant 18615 | -5/Proximity Caves | Entered Factory 18615 | -5/Factory | Accompanied by 1 ally 18615 | -5/Factory | Evolved 2 slots: Power x1, Utility x1 18616 | -5/Factory | Identified exit to Extension 18909 | -5/Factory | Build established: Golem 19601 | -5/Factory | Found Prototype Launcher 19601 | -5/Factory | Identified Scatter Rocket Array 19866 | -5/Factory | Entered Extension 20009 | -5/Extension | Found Launcher Loader 20092 | -5/Extension | Rescued a captive Derelict 20093 | -5/Extension | Rescued a captive Derelict 20151 | -5/Extension | Rescued a captive Derelict 20152 | -5/Extension | Rescued a captive Derelict 20253 | -5/Extension | Rescued a captive Derelict 20254 | -5/Extension | Rescued a captive Derelict 20854 | -5/Extension | Spotted B-75 Beast 20874 | -5/Extension | Destroyed B-75 Beast 20918 | -5/Extension | Destroyed B-75 Beast 21029 | -5/Extension | Rescued A7 21098 | -5/Extension | Rescued a captive Derelict 21161 | -5/Extension | Rescued a captive Derelict 21162 | -5/Extension | Rescued a captive Derelict 21320 | -5/Extension | Rescued a captive Derelict 21321 | -5/Extension | Rescued a captive Derelict 21431 | -5/Extension | Build established: Commander-Golem 21489 | -5/Extension | Rescued a captive Derelict 21490 | -5/Extension | Rescued a captive Derelict 21503 | -5/Extension | Rescued a captive Derelict 21585 | -5/Extension | Discovered new exit (range 10) 21587 | -5/Extension | Discovered new exit (range 6) 22186 | -5/Extension | Entered Cetus 22186 | -5/Cetus | Accompanied by 19 allies (A7) 22191 | -5/Cetus | Acquired a Cetus Manufacturing Module code from A7 22209 | -5/Cetus | Spotted Cetus Guard 22209 | -5/Cetus | Spotted Cetus Guard 22211 | -5/Cetus | Spotted Cetus Guard 22216 | -5/Cetus | Spotted Cetus Guard 22225 | -5/Cetus | Allies destroyed Cetus Guard 22227 | -5/Cetus | Allies destroyed Cetus Guard 22229 | -5/Cetus | Allies destroyed Cetus Guard 22230 | -5/Cetus | Allies destroyed Cetus Guard 22234 | -5/Cetus | Cetus Manufacturing Module disabled 22330 | -5/Cetus | Escorted A7 to Cetus Mainframe 22357 | -5/Cetus | Discovered new exit (range 15) 22385 | -5/Cetus | Entered Archives 22385 | -5/Archives | Accompanied by 11 allies (A7) 22390 | -5/Archives | Received a hacking code to weaken MAIN.C 22452 | -5/Archives | Discovered new exit (range 16) 22602 | -5/Archives | Build established: Mutant 25175 | -5/Archives | Entered Hub_04(d) 25175 | -5/Hub_04(d) | Accompanied by 5 allies 25419 | -5/Hub_04(d) | Discovered new exit (range 3) 25539 | -5/Hub_04(d) | Discovered new exit (range 13) 25643 | -5/Hub_04(d) | Network Hub disabled 25732 | -5/Hub_04(d) | Entered Factory 25732 | -4/Factory | Evolved 2 slots: Utility x2 25969 | -4/Factory | Garrison activated, responded to threat 26027 | -4/Factory | Destroyed 7 combat bots 26044 | -4/Factory | Build established: Golem 26186 | -4/Factory | Garrison activated, responded to threat 26234 | -4/Factory | Found Prototype Processor 26234 | -4/Factory | Identified Exp. Signal Interpreter 26447 | -4/Factory | Garrison activated, responded to threat 26482 | -4/Factory | First assault squad dispatched 26488 | -4/Factory | Incoming assault squad redirected 26498 | -4/Factory | Incoming investigation squad redirected 26504 | -4/Factory | Destroyed 10 combat bots 26519 | -4/Factory | Spotted B-86 Titan 26520 | -4/Factory | Destroyed B-86 Titan 26572 | -4/Factory | Destroyed 7 combat bots 26721 | -4/Factory | High security lockdown imminent 26744 | -4/Factory | Discovered new exit (range 13) 26773 | -4/Factory | Identified exit to Research 26776 | -4/Factory | Entered Research 26776 | -3/Research | Evolved 2 slots: Propulsion x2 27020 | -3/Research | Found Prototype Processor 27020 | -3/Research | Identified Exp. Target Analyzer 27024 | -3/Research | Found Exp. Target Analyzer 27045 | -3/Research | Build established: Scavenger-Golem 27318 | -3/Research | First assault squad dispatched 27340 | -3/Research | Incoming assault squad redirected 27389 | -3/Research | Lost 5 parts (2n1u2w) 27588 | -3/Research | Incoming assault squad redirected 27590 | -3/Research | Incoming assault squad redirected 27727 | -3/Research | Lost 5 parts (1p2n2u) 27732 | -3/Research | Destroyed 15 combat bots 27765 | -3/Research | Found Gamma Bomb Array 27796 | -3/Research | Incoming assault squad redirected 28045 | -3/Research | Incoming assault squad redirected 28078 | -3/Research | Spotted B-86 Titan 28087 | -3/Research | High security lockdown imminent 28094 | -3/Research | Core integrity fell below 50% 28094 | -3/Research | System corruption reached 10% 28105 | -3/Research | Released all parts (10) 28131 | -3/Research | Lost 10 parts (1p4n2u3w) 28132 | -3/Research | Spotted B-86 Titan 28145 | -3/Research | Core integrity fell below 20% 28156 | -3/Research | Discovered new exit (range 10) 28166 | -3/Research | Destroyed by H-71 Marshal with Heavy Mass Driver Last Messages --------------- 28144_ Destabilizing: Core damaged (-52). 28145_ Slammed into R-10 Processor. 28147_ ALERT: Suspicious intruders detected, dispatching Cutter reinforcements to area. 28152_ ALERT: Performing unscheduled system reset. 28156_ D26NZDHV1XBSY6U#AYDTYSJ MM 28156_ EXIT=FOUND 28157_ Slammed into T-07 Excavator. 28157_ Destabilizing: System corrupted (+1). 28158_ Slammed into C-35 Carver. 28160_ Destabilizing: System corrupted (+2). 28161_ Slammed into C-35 Carver. 28162_ K-01 Serf exits level. 28162_ Slammed into C-35 Carver. 28164_ Penetrated by Slug. 28164_ Knocked back. 28165_ Slammed into H-71 Marshal. 28166_ H-71 Marshal calls for reinforcements. 28166_ ALERT: Hostile activity reported, dispatching reinforcements to area. Map ----- +----------------------------------------------------+ | """ #?????????????????????????????????????????? | | """ #?????????????????????????????????????????? | | """ #?????????????????????????????????????????? | | +?????????????????????????????????????????? | | #?????????????????????????????????????????? | | #?????????????????????????????????????????? | | ########?????????????????????????????????????????? | | ?????????????????????????????????????????????????? | | ?????????????????????????????????????????????????? | | ?????????????????????????????????????????????????? | | ?????????????????????????????????????????????????? | | ?????????????????????????????????????????????????? | | #?????????????????????????????????????????? | | #?????????????????????????????????????????? | | """" #?????????????????????????????????????????? | | """??????????????????????????????????????????????? | | """??????????????????????????????????????????????? | | """?????????#+#############??????????????????????? | | ??????????# c #??????????????????????? | | ? ??????????#s###########k#??????????????????????? | | ????????????# ########??#t#??????????????????????? | | ?????????#### # #??# #??????????????????????? | | ?????????#T"# # #??#c#??????????????????????? | | ########## "# # #??#c#??????????????????????? | | + #?##%#??????????????????????? | | #### #?#c@#??????????????????????? | | #??# * ! #?##H#??????????????????????? | | #??########??# #??????????????????????? | | #######+##+#???????????? ! ??????????????????????? | | ????? ?????????????? < ??????????????????????? | | ????# ???????????? ??????????????????????? | | ????# """ #??????????#+#??????????????????????? | | ????# """ #??????????? ???????????????????????? | | ????# """ #??????????? ???????????????????????? | | ????# """ #??????????? ???????????????????????? | | ????# ""??%#???????????=???????????????????????? | | ????# ????#??????????? ???????????????????????? | | ????# ????????????????????????????????????????? | | ????#####????????????????????????????????????????? | | ?????????????????????????????????????????????????? | | ?????????????????????????????????????????????????? | | ?????????????????????????????????????????????????? | | ?????????????????????????????????????????????????? | | ?????????????????????????????????????????????????? | | ?????????????????????????????????????????????????? | | ?????????????????????????????????????????????????? | | ?????????????????????????????????????????????????? | | ?????????????????????????????????????????????????? | | ?????????????????????????????????????????????????? | | ?????????????????????????????????????????????????? | +----------------------------------------------------+ Best States ------------- Heat Dissipation 114 Energy Generation 45 Energy Capacity 1500 Matter Stores 300 Matter Capacity 300 Sight Range 16 Terrain Scan Density 10 Jamming Range 14 Additional Mass Support 20 Armor Coverage 700 Resistance: KI 30 Resistance: TH 15 Resistance: EX 15 Resistance: EM 15 Resistance: I 15 Resistance: S 15 Resistance: P 15 Weapon Shielding 100 Phase Shifting 8 Evasion (%) 55 Targeting Accuracy 14 Target Analysis 10 Core Analysis 8 Armor Integrity Analysis 30 Recoil Reduction 3 Particle Charging 25 Item Schematics ----------------- Tactical Coordination Suite | -6/Factory | Scanalyzed Imp. Medium Armor Plating | -6/Factory | Scanalyzed Combat Drone Bay | -6/Data Miner | Free Lgt. Regenerative Plating | -6/Data Miner | Free Enh. Flexi-carbon Leg | -6/Data Miner | Free Exp. Heat Sink | -6/Data Miner | Free Hvy. Gatling Laser | -6/Data Miner | Free Point Defense Array | -6/Data Miner | Free Hvy. Siege Treads | -6/Data Miner | Free Matter Neutralizer | -6/Data Miner | Free Imp. Transmission Jammer | -6/Data Miner | Free Centrium Wheel | -6/Data Miner | Free HERF Cannon | -6/Data Miner | Free Nova Cannon | -6/Data Miner | Free Imp. Remote Force Field | -6/Data Miner | Free Robot Schematics ------------------ B-60 Warrior | -6/Data Miner | Free G-50 Soldier | -6/Data Miner | Free D-63 Destroyer | -6/Data Miner | Free L-61 Swordsman | -6/Data Miner | Free A-27 Freighter | -6/Data Miner | Free Fabricated ------------ Nothing Alien Tech Used ----------------- None Achievements -------------- None Challenges ------------ None Game ------ Seed ChainWarpShockpuncher Manual? 0 Play Time 02:53:51 Cumulative 342.5 hours Start 2022.05.10 @ 18:34:04 End 2022.05.12 @ 22:41:00 Sessions 3 Manual Loads 0 Difficulty Rogue Special Mode None Game No. 372 Rogue 372 Adventurer 0 Explorer 0 Win Type - Total 28 Types 17/3/2/1/2/0/3/0/0 Lore% 88 Gallery% 86 Achievement% 80 Wizard Run 0 Options --------- ASCII 0 Keyboard 0 Movement Arrows Keybinds 0 Fullscreen 2 Font 18/SmallcapsGlow Map View 76x50 Tactical HUD 1 Map Filters NONE Filters NONE Steam 1 RUN: e60bd43d-6a88-4eb2-9cb5-444315b14ea4